Cogmind - Beta 16 @@@ ROGUE MODE // 2026.01.01 @ 14:06:42 Player: jam Result: Destroyed by as-64386 with Assembled Rifle Performance ------------- Evolutions (1) 500 Regions Visited (3) 600 Robots Destroyed (19) 95 Value Destroyed (443) 443 Prototype IDs (0) 0 Alien Tech Used (0) 0 Bonus (-6) -6 TOTAL SCORE: 1632 Bonus ------- Friendly Fire -6 Cogmind --------- Core Integrity 0/400 Matter 300/300 Energy 100/100 System Corruption 0% Temperature Cool (0) Movement Walking (120) Location -9/Mines Parts ------- > --- POWER (1) -------- (None) > --- PROPULSION (4) --- Aluminum Leg > --- UTILITY (2) ------ Small Storage Unit Improved Targeting Computer > --- WEAPON (2) ------- (None) > --- INVENTORY (8) ---- Ion Engine Light Ion Engine Decoy Drone Bay Peak State ------------ > --- POWER ------------ Ion Engine > --- PROPULSION ------- Light Treads Light Treads Aluminum Leg Aluminum Leg > --- UTILITY ---------- Small Storage Unit Improved Targeting Computer > --- WEAPON ----------- Assault Rifle Light Assault Rifle > --- INVENTORY -------- Ion Engine Ion Engine Light Ion Engine Decoy Drone Bay Light Assault Rifle [Rating: 11] Favorites ----------- Power Light Ion Engine Engine Light Ion Engine Propulsion Aluminum Leg Treads Light Treads Leg Aluminum Leg Utility Small Storage Unit Device Heat Sink Storage Small Storage Unit Processor Improved Targeting Computer Weapon Light Assault Rifle Energy Gun Medium Laser Ballistic Gun Light Assault Rifle Build | -11 -10 -9 -9 ------- Run | Yrd Mat Mat Min Slots Evolved 2 | . . 2 . Power . | . . . . Propulsion 2 | . . 2 . Utility . | . . . . Weapon . | . . . . Parts Attached 24 | 6 2 14 2 Power 4 | 1 . 2 1 Engine 4 | 1 . 2 1 Core . | . . . . Reactor . | . . . . Propulsion 10 | 2 . 8 . Treads 2 | . . 2 . Leg 8 | 2 . 6 . Wheel . | . . . . Hover . | . . . . Flight . | . . . . Utility 5 | 1 2 2 . Device 3 | . 2 1 . Storage 1 | 1 . . . Processor 1 | . . 1 . Hackware . | . . . . Protection . | . . . . Artifact . | . . . . Weapon 5 | 2 . 2 1 Energy Gun 1 | 1 . . . Energy Cannon . | . . . . Ballistic Gun 4 | 1 . 2 1 Ballistic Cannon . | . . . . Launcher . | . . . . Special Weapon . | . . . . Impact Weapon . | . . . . Slashing Weapon . | . . . . Piercing Weapon . | . . . . Special Melee Weapon . | . . . . Unidentified Prototypes . | . . . . Parts Lost 15 | . . 7 8 Power 2 | . . . 2 Propulsion 8 | . . 5 3 Utility . | . . . . Weapon 5 | . . 2 3 Highest Loss Streak 8 | . . 5 8 To Critical Strikes . | . . . . Average Backups 4 | 3 5 5 4 Power 1 | . 1 1 2 Propulsion 1 | 1 2 1 . Utility . | . . . . Weapon 1 | . 1 1 . Tool/Special . | . . . . Unused Backups 2 | . . 1 1 Power 1 | . . 1 . Propulsion . | . . . . Utility 1 | . . . 1 Weapon . | . . . . Tool/Special . | . . . . Average Slot Usage (%) 94 | . 97 92 92 Engine 12 | . 14 11 11 Treads 8 | . . 12 20 Leg 26 | . 28 26 21 Device 7 | . 11 6 . Storage 12 | . 14 11 11 Processor 3 | . . 4 11 Energy Gun 7 | . 14 3 . Ballistic Gun 15 | . 14 16 17 Peak Build Rating 11 | 6 7 10 11 Average Rating 7 | 5 6 8 10 On Entrance 5 | . 6 7 10 Avg Prop Armor Cover (%) 15 | . . 14 17 Naked Turns . | . . . . Heaviest Build 14 | 11 12 14 13 Greatest Support 40 | 20 20 40 20 Greatest Overweight (x) . | . . . . Average Overweight (x) . | . . . . Largest Inventory Capacity 8 | 8 8 8 8 Average Capacity 7 | 7 8 8 8 Most Carried 8 | 5 7 8 6 Average Carried 5 | 3 5 5 5 Final Capacity 8 | 8 8 8 8 Final Carried 7 | 4 7 4 4 Class Distribution -------------------- 66% | Mutant 33% | Scavenger-Mutant Dominant Class ---------------- Mutant | -10/Materials Scavenger-Mutant | -9/Materials Scavenger-Mutant | -9/Mines Resources | -11 -10 -9 -9 ----------- Run | Yrd Mat Mat Min Matter Collected 550 | 233 52 265 . Remotely . | . . . . Salvage Created 535 | 40 90 405 . Parts 40 | 2 7 31 . Haulers Intercepted . | . . . . Recyclers Shooed . | . . . . Parts Field Recycled . | . . . . Retrieved Matter . | . . . . Parts Self-Destructed . | . . . . Prevented . | . . . . Parts Restored . | . . . . Kills | -11 -10 -9 -9 ------- Run | Yrd Mat Mat Min Combat Hostiles Destroyed 16 | . 3 13 . Guns 16 | . 3 13 . Classes Destroyed 4 | 1 2 1 . Tunneler 2 | 2 . . . Watcher 1 | . . 1 . Swarmer 6 | . 1 5 . Grunt 10 | . 2 8 . Best Kill Streak 7 | 1 1 7 . Combat Bots Only 7 | . 1 7 . Max Kills in Single Turn 1 | 1 1 1 . Gunslinging . | . . . . Exploded . | . . . . Melee . | . . . . Uniques/NPCs Destroyed . | . . . . Combat | -11 -10 -9 -9 -------- Run | Yrd Mat Mat Min Hostile Shots Fired 239 | . 16 153 70 Missed 86 | . 4 56 26 Hits 153 | . 12 97 44 Melee 18 | . . . 18 Projectile 135 | . 12 97 26 Critical Strikes 3 | . . 2 1 Damage Taken 2022 | . 129 986 907 Core 428 | . 22 220 186 Absorbed by Shields . | . . . . Core Remaining (%) 95 | 100 91 . . Volleys Fired 84 | 12 12 53 7 Largest 2 | 2 2 2 2 Hottest 70 | 70 70 70 40 Shots Fired 147 | 24 24 89 10 Gun 147 | 24 24 89 10 Cannon . | . . . . Launcher . | . . . . Special . | . . . . Kinetic 110 | 12 12 76 10 Thermal 37 | 12 12 13 . Explosive . | . . . . Electromagnetic . | . . . . Robot Hit Streak 7 | 4 5 7 5 Robot Miss Streak 5 | 3 2 4 5 Penetration Max . | . . . . Secondary Targets . | . . . . Shots Hit Robots 86 | 12 16 54 4 Core Hits 37 | 3 5 24 5 Critical Kills . | . . . . Critical Parts Destroyed . | . . . . Critical Strikes 2 | . 1 1 . Burn 2 | . 1 1 . Melee Attacks . | . . . . Impact . | . . . . Slashing . | . . . . Piercing . | . . . . Sneak Attacks . | . . . . Combat Hostiles . | . . . . Follow-up Attacks . | . . . . Damage Inflicted 935 | 137 176 554 68 Guns 924 | 137 176 554 57 Cannons . | . . . . Explosions . | . . . . Melee . | . . . . Ramming 11 | . . . 11 Kinetic 659 | 60 76 466 57 Thermal 265 | 77 100 88 . Explosive . | . . . . Electromagnetic . | . . . . Impact . | . . . . Slashing . | . . . . Piercing . | . . . . Highest Corruption . | . . . . Average Corruption . | . . . . Corruption Purged . | . . . . Corruption Blocked . | . . . . Overload Shots . | . . . . Overflow Damage . | . . . . Projectiles . | . . . . Explosions . | . . . . Melee . | . . . . Knockbacks . | . . . . Impact . | . . . . Kinetic . | . . . . Secondary . | . . . . Self-Inflicted Damage . | . . . . Shots . | . . . . Rammed . | . . . . Targets Rammed 3 | . . . 3 Kicked 3 | . . . 3 Crushed . | . . . . Highest Temperature 110 | 110 32 32 . Average Temperature 27 | 52 10 7 . Received Heat Transfer 438 | . 72 366 . Siege Activations . | . . . . Martial Activations . | . . . . Shielding Activations . | . . . . Robots Disrupted . | . . . . Combat Hostiles . | . . . . Robots Corrupted . | . . . . Combat Hostiles . | . . . . Parts Fried . | . . . . Impact Corruptions . | . . . . Robots Melted . | . . . . Combat Hostiles . | . . . . Parts Melted 2 | . 2 . . Heat Transferred 925 | 222 370 333 . Parts Sabotaged . | . . . . Parts Stolen . | . . . . Parts Stripped . | . . . . Power Chain Reactions . | . . . . Alert | -11 -10 -9 -9 ------- Run | Yrd Mat Mat Min Maximum Alert Level . | . . . . Low Security (%) 100 | 100 100 100 100 Level 1 . | . . . . Level 2 . | . . . . Level 3 . | . . . . Level 4 . | . . . . Level 5 . | . . . . High Security . | . . . . Max Security . | . . . . Peak Influence 150 | 5 35 150 42 Initial 42 | . . . 42 Average 36 | . 8 79 18 Influence Increases 401 | 10 82 309 . Destroy 0b10 Robot/C 320 | . 60 260 . Destroy 0b10 Robot/NC 15 | 10 . 5 . Destroy Leader 42 | . . 42 . Successful Hack 9 | . 7 2 . Lose Combat Pursuer 15 | . 15 . . Influence Decreases 401 | 10 82 200 109 Entered New Map 67 | . . . 67 Time Decay 264 | 10 82 140 32 Lost Part 70 | . . 60 10 Squads Dispatched 3 | . 1 2 . Investigation 2 | . 1 1 . Extermination . | . . . . Reinforcement 1 | . . 1 . Assault . | . . . . Garrison . | . . . . Intercept . | . . . . Searches Triggered . | . . . . Construction Impeded . | . . . . Haulers Reinforced . | . . . . Active Scanning Responses . | . . . . Cargo Convoy Interrupts . | . . . . Stealth | -11 -10 -9 -9 --------- Run | Yrd Mat Mat Min Distress Signals 4 | . . 3 1 Communications Jammed . | . . . . Distress Signals . | . . . . Times Spotted 44 | . 5 23 16 Peak Tracking Total 20 | . 2 9 20 Tactical Retreats 2 | . 1 . 1 Traps | -11 -10 -9 -9 ------- Run | Yrd Mat Mat Min Traps Triggered 2 | . 1 1 . Indirectly . | . . . . Trap Hack Attempts . | . . . . Triggered . | . . . . Disarmed . | . . . . Reprogrammed . | . . . . Reused . | . . . . Traps Extracted . | . . . . Installed . | . . . . Triggered . | . . . . Machines | -11 -10 -9 -9 ---------- Run | Yrd Mat Mat Min Machines Disabled . | . . . . Max in Single Turn . | . . . . Machines Repaired . | . . . . Machines Dismantled . | . . . . Machines Sabotaged . | . . . . Overloaded Fab Kills . | . . . . Hacking | -11 -10 -9 -9 --------- Run | Yrd Mat Mat Min Machines Accessed 5 | . 3 1 1 Terminals 2 | . 2 . . Fabricators . | . . . . Repair Stations . | . . . . Recycling Units 1 | . 1 . . Scanalyzers 1 | . . 1 . Garrison Access . | . . . . Total Hacks 17 | . 14 2 1 Successful 11 | . 8 2 1 Failed 6 | . 6 . . Catastrophic . | . . . . Database Lockouts . | . . . . Manual . | . . . . Terminals 7 | . 7 . . Fabricators . | . . . . Repair Stations . | . . . . Recycling Units 7 | . 7 . . Scanalyzers 2 | . . 2 . Garrison Access . | . . . . Terminal Hacks 4 | . 3 . 1 Record 2 | . 2 . . Open Door 1 | . . . 1 Recall Investigation 1 | . 1 . . Fabricator Hacks . | . . . . Repair Station Hacks . | . . . . Recycling Unit Hacks 5 | . 5 . . Recycle Component 1 | . 1 . . Process 1 | . 1 . . Report Inventory 1 | . 1 . . Retrieve Matter 1 | . 1 . . Retrieve Components 1 | . 1 . . Scanalyzer 2 | . . 2 . Retrieve Study 2 | . . 2 . Garrison Access Hacks . | . . . . Unauthorized Hacks . | . . . . Terminals . | . . . . Fabricators . | . . . . Repair Stations . | . . . . Recycling Units . | . . . . Scanalyzers . | . . . . Garrison Access . | . . . . Data Cores Recovered . | . . . . Used . | . . . . Hacking Detections 3 | . 2 1 . Full Trace Events 1 | . 1 . . Feedback Events . | . . . . Feedback Blocked . | . . . . Robot Schematics Acquired . | . . . . Robots Built . | . . . . Authchips . | . . . . Time . | . . . . Total Robot Build Rating . | . . . . Part Schematics Acquired . | . . . . Parts Built . | . . . . Authchips . | . . . . Time . | . . . . Total Part Build Rating . | . . . . Part Studies Acquired 2 | . . 2 . Parts Repaired . | . . . . Time . | . . . . Parts Recycled 1 | . 1 . . Recycled Matter 19 | . 19 . . Retrieved Matter 19 | . 19 . . Retrieved Components . | . . . . Parts Scanalyzed . | . . . . Part Schematics Acquired . | . . . . Parts Damaged . | . . . . Bothacking | -11 -10 -9 -9 ------------ Run | Yrd Mat Mat Min Used RIF Installer . | . . . . Robots Hacked . | . . . . Non-combat . | . . . . Combat . | . . . . Robot Hacks Applied . | . . . . Relay Couplers Released . | . . . . Fabnet Peak Effective % . | . . . . Robots Rewired . | . . . . Allies Hacked . | . . . . Hacks Repelled . | . . . . Allies | -11 -10 -9 -9 -------- Run | Yrd Mat Mat Min Total Allies . | . . . . Largest Group . | . . . . Highest-Rated Group . | . . . . Highest-Rated Ally . | . . . . Total Orders . | . . . . Ally Attacks . | . . . . Total Damage . | . . . . Kills . | . . . . Allies Corrupted . | . . . . Allies Melted . | . . . . Intel | -11 -10 -9 -9 ------- Run | Yrd Mat Mat Min Active Infowar (turns) . | . . . . Robot Analysis Total . | . . . . Derelict Logs Recovered . | . . . . Drone Launches . | . . . . Drone Recoveries . | . . . . Exploration | -11 -10 -9 -9 ------------- Run | Yrd Mat Mat Min Turns Passed 872 | 111 313 338 110 Spaces Moved 488 | 53 226 137 72 Core 4 | 4 . . . Treads 27 | . . 27 . Legs 457 | 49 226 110 72 Wheels . | . . . . Hover . | . . . . Flight . | . . . . Fastest Speed 50 | 50 120 120 120 Average Speed 121 | 114 120 127 120 Slowest Speed 160 | 120 120 160 120 Overloaded Moves . | . . . . Propulsion Burnouts . | . . . . Robots Hopped . | . . . . Potential Cave-ins . | . . . . Cave-ins Triggered . | . . . . Exploration Rate (%) 18 | 4 35 13 23 Regions Visited 3 Branch Regions 1 Pre-discovered Areas . | . . . . Known Exits Taken . | . . . . Unknown Exits Taken 3 | 1 1 1 . Scrap Searched . | . . . . Spaces Dug . | . . . . Terrain Destroyed . | . . . . Melee . | . . . . Projectile . | . . . . AOE . | . . . . Terrain Rammed . | . . . . Walls Destroyed . | . . . . Machines Disabled . | . . . . Actions | -11 -10 -9 -9 --------- Run | Yrd Mat Mat Min Total 633 | 81 246 220 86 Wait 1 | 1 . . . Move 485 | 52 225 136 72 Hop . | . . . . Pick Up 27 | 10 6 10 1 Fast Attach . | . . . . Attach 21 | 6 1 12 2 Detach . | . . . . Swap 7 | . 1 5 1 Drop 5 | . 1 4 . Fire 84 | 12 12 53 7 Melee . | . . . . Ram . | . . . . Kick 3 | . . . 3 Crush . | . . . . Escape Stasis . | . . . . Rewire . | . . . . Trap . | . . . . Miscellaneous . | . . . . Route ------- -11/Scrapyard -10/Materials -9/Materials -9/Mines History --------- Turn | Location | Event 11 | -11/Scrapyard | Discovered new exit (range 15) 112 | -11/Scrapyard | Entered Materials 302 | -10/Materials | Build established: Mutant 408 | -10/Materials | Discovered new exit (range 6) 425 | -10/Materials | Entered another Materials area 425 | -9/Materials | Evolved 2 slots: Propulsion x2 602 | -9/Materials | Destroyed 7 combat bots 629 | -9/Materials | Core integrity fell below 50% 672 | -9/Materials | Lost 5 parts (4n1w) 730 | -9/Materials | Discovered new exit (range 12) 763 | -9/Materials | Entered Mines 773 | -9/Mines | Found the Drone Emporium 778 | -9/Mines | Found Prototype Device 834 | -9/Mines | Assembled infested the area 839 | -9/Mines | Assisted by a Guerilla fighting off Assembled 866 | -9/Mines | Core integrity fell below 20% 873 | -9/Mines | Destroyed by as-64386 with Assembled Rifle Last Messages --------------- 00837_ as-87670 destroyed. 00838_ Assault Rifle destroyed. 00839_ A derelict emerges from the shadows: "You need to get out of here! I've been tracking a group of Assembled to figure out where they're coming from, and they're closing on this area, come on!" 00844_ HV Slug penetrates as-14132. 00844_ as-14132 suffers critical hit (Destroy). 00845_ LL-9ON(h) destroyed. 00854_ Knocked back. 00859_ Lgt. Assault Rifle+ destroyed. 00860_ Lgt. Treads destroyed. 00861_ Kicked as-03945. 00863_ Ion Engine+ destroyed. 00863_ Lgt. Treads destroyed. 00863_ Aluminum Leg destroyed. 00864_ Lgt. Assault Rifle+ destroyed. 00865_ Kicked as-03945 out of the way. 00872_ as-03945 destroyed. 00872_ Ion Engine+ destroyed. Map ----- +----------------------------------------------------+ | ????????????????????????????????????????????????? | | ????????????? ??????????????????????????????????? | | ??????????? % #?????????????????????????????????? | | ????????# % %#????????????????????????????????? | | ???????# % ????????????????????????????????? | | ???????# ??????????????######????????????? | | ???????? ##???????????##""""##???????????? | | ????????# "#???????????#" "#???????????? | | ???????## ???????????#" "#???????????? | | ??????## ???????????## ##???????????? | | ??????# ???????????#### ###???????????? | | ??????# ??????????## X ##??????????? | | ???????# ?????????## ###????????? | | ???????# % ?????????# ##???????? | | ??????## "?????????# #???????? | | ??????? #?????????# #???????? | | ????????????# %!##????????## #???????? | | ????????????## ####??????## ## ## ##???????? | | ?????????????# a ##??????# ## ######????????? | | ?????????????# a ##?????# ## #?????????????? | | ?????????????# a ##????# ## #?????????????? | | ????????????## a% ##???# ## #?????????????? | | ????????????# a a ##?## #?????????????? | | ???????????## a ### ####?????????????? | | ???????????# ###a ##???????????????? | | ???????????# ##?##a@ ##??????????????? | | ???????????# ##??## ##?????????????? | | ??????????## ##?## #?????????????? | | ?????????## ### ### #????????????? | | ????????# ##??# #???????????? | | ???????# ### #???? ??????????? | | ??????# ##?## #???? ##?????????? | | ?????# ##???## #???? ##??????????? | | ????# ##?????## ## #???? ##???????????? | | ????## #????????# #### #?????#????????????? | | ?????######?????????## #???###??????????????????? | | ?????????????????????###????????????????????????? | | ????????????????????????????????????????????????? | | ????????????????????????????????????????????????? | | ????????????????????????????????????????????????? | | | | | | | | | | | | | | | | | | | | | +----------------------------------------------------+ Best States ------------- Heat Dissipation 38 Energy Generation 12 Energy Capacity 250 Matter Stores 300 Matter Capacity 300 Sight Range 16 Terrain Scan Density 10 Evasion (%) 55 Targeting Accuracy 6 Recoil Reduction 2 Item Schematics ----------------- None Robot Schematics ------------------ None Fabricated ------------ Nothing Repaired ---------- Nothing Studied --------- Ion Engine | -9/Materials | Hacked Lgt. Assault Rifle | -9/Materials | Hacked Alien Tech Used ----------------- None Achievements -------------- GoHome() Hunted Item+ Challenges ------------ None Game ------ Seed MicroShockGun Manual? 0 Play Time 00:20:34 Cumulative 3.1 hours Start 2026.01.01 @ 13:43:22 End 2026.01.01 @ 14:06:42 Sessions 1 Manual Loads 0 Difficulty Rogue Special Mode None Game No. 7 Rogue 4 Adventurer 3 Explorer 0 Win Type - Total 0 Types 0/0/0/0/0/0/0/0/0/0 Lore% 3 Gallery% 6 Achievement% 6 Wizard Run 0 Options --------- Layout 1 ASCII 0 Keyboard 0 Movement Mouse Keybinds 0 Fullscreen 1 Font 20/SmallcapsGlow Map View 55x45 Zoom Use 0% Tactical HUD 1 Map Filters NONE Filters NONE Steam 1 RUN: 10245e3d-f089-4e48-b126-03f555161658